bitfinex/quotes_BTCUSD_20260101
["timestamp","ask_amount","ask_price","bid_price","bid_amount"]
[1767292521256,7e-07,88189.0,88184.0,0.01133992]
[1767292521462,7e-07,88189.0,88183.0,0.01134005]
[1767292521672,7e-07,88189.0,88184.0,0.01133992]
[1767292522361,7e-07,88189.0,88185.0,0.01133979]
[1767292522562,7e-07,88189.0,88184.0,0.15142284]
[1767292523516,7e-07,88189.0,88184.0,0.14008292]
[1767292523715,7e-07,88189.0,88182.0,0.01134018]
[1767292524152,7e-07,88189.0,88180.0,0.01136]
[1767292524361,7e-07,88189.0,88181.0,0.01134031]
[1767292524737,7e-07,88189.0,88180.0,0.02270044]
[1767292524942,7e-07,88189.0,88181.0,0.01134031]
[1767292525626,7e-07,88189.0,88180.0,0.07940242]
[1767292525831,7e-07,88189.0,88182.0,0.05670091]
[1767292525988,7e-07,88189.0,88183.0,0.01134005]
[1767292526172,7e-07,88189.0,88184.0,0.01133992]
[1767292526379,7e-07,88189.0,88185.0,0.01133979]
[1767292526651,7e-07,88189.0,88184.0,0.01133992]
[1767292526833,7e-07,88189.0,88184.0,0.15989018]
[1767292527694,7e-07,88189.0,88185.0,0.01133979]
[1767292528077,7e-07,88189.0,88184.0,0.15989018]
[1767292528276,7e-07,88189.0,88185.0,0.01133979]
[1767292529010,7e-07,88189.0,88184.0,0.15989018]
[1767292529212,7e-07,88189.0,88185.0,0.01133979]
[1767292529453,7e-07,88189.0,88184.0,0.15989018]
[1767292529645,7e-07,88189.0,88185.0,0.01133979]
[1767292529847,7e-07,88189.0,88184.0,0.15989018]
[1767292530282,7e-07,88189.0,88185.0,0.15989005]
[1767292530574,7e-07,88189.0,88185.0,0.14855026]
[1767292530782,0.01131724,88196.0,88185.0,0.14855026]
[1767292531538,0.0112756,88196.0,88183.0,0.01134005]
[1767292531819,0.0112756,88196.0,88184.0,0.15989018]
[1767292531970,0.0112756,88196.0,88185.0,0.01133979]
[1767292533197,0.0112756,88196.0,88186.0,0.01133966]
[1767292533372,0.0112756,88196.0,88185.0,0.01133979]
[1767292534260,0.0112756,88196.0,88186.0,0.01133966]
[1767292534685,0.0112756,88196.0,88187.0,0.01133953]
[1767292535406,0.0112756,88196.0,88186.0,0.01133966]
[1767292535631,0.0112756,88196.0,88189.0,0.01133928]
[1767292535793,0.0001467,88198.0,88192.0,0.01133889]
[1767292536900,0.00010317,88198.0,88192.0,0.01133889]
[1767292537774,0.14712648,88204.0,88192.0,0.01133889]
[1767292537775,0.01131833,88203.0,88192.0,0.01133889]
[1767292538324,0.01131833,88203.0,88193.0,0.01133876]
[1767292538803,0.01131833,88203.0,88193.0,0.01076338]
[1767292539209,0.0001467,88207.0,88193.0,0.01076338]
[1767292539210,0.0001467,88207.0,88194.0,0.01133863]
[1767292539479,0.0001467,88207.0,88195.0,0.01133851]
[1767292539671,0.0001467,88207.0,88199.0,0.01133799]
[1767292540011,0.0001467,88207.0,88200.0,0.01133786]
[1767292540429,0.0001467,88207.0,88199.0,0.01133799]
[1767292540674,0.0001467,88207.0,88197.0,0.01133825]
[1767292540825,0.0001467,88207.0,88198.0,0.01133812]
[1767292541307,0.01136,88213.0,88195.0,0.01133851]
[1767292541510,0.14712648,88212.0,88196.0,0.01133838]
[1767292541645,0.14712648,88212.0,88195.0,0.01133851]
[1767292541847,0.1584628,88212.0,88190.0,0.53285739]
[1767292542056,0.14712648,88211.0,88193.0,0.01133876]
[1767292542457,0.14712648,88211.0,88193.0,0.01138106]
[1767292542682,0.15846293,88211.0,88193.0,4.23e-05]
[1767292542854,0.01133658,88210.0,88193.0,4.23e-05]
[1767292543053,0.14712648,88209.0,88193.0,4.23e-05]
[1767292548457,0.15846319,88209.0,88193.0,4.23e-05]
[1767292548652,0.14712648,88209.0,88193.0,4.23e-05]
[1767292553804,0.15846319,88209.0,88193.0,4.23e-05]
[1767292554082,0.14712648,88209.0,88193.0,4.23e-05]
[1767292554455,0.14048375,88215.0,88200.0,0.15978576]
[1767292554698,0.22668431,88229.0,88212.0,0.1484479]
[1767292554699,0.14068375,88228.0,88212.0,0.1484479]
[1767292554906,0.0002,88228.0,88215.0,0.1484479]
[1767292555078,0.0002,88228.0,88216.0,0.00652029]
[1767292555273,0.0002,88228.0,88215.0,0.15978384]
[1767292555274,0.0002,88228.0,88215.0,0.15920861]
[1767292555456,0.0002,88228.0,88215.0,0.14787267]
[1767292555810,0.0002,88228.0,88219.0,0.01133542]
[1767292556094,0.0002,88228.0,88217.0,0.01133568]
[1767292556536,0.0002,88228.0,88219.0,0.01133542]
[1767292556537,0.0001924,88225.0,88219.0,0.01133542]
[1767292556719,4.64e-05,88225.0,88219.0,0.01133542]
[1767292557623,4.64e-05,88225.0,88220.0,0.01133529]
[1767292558855,2.76e-06,88225.0,88222.0,0.01133504]
[1767292559299,2.76e-06,88225.0,88220.0,0.15978319]
[1767292559732,2.76e-06,88225.0,88220.0,0.1484479]
[1767292559942,2.76e-06,88225.0,88221.0,0.02269516]
[1767292560173,2.76e-06,88225.0,88221.0,0.01136]
[1767292560284,2.76e-06,88225.0,88221.0,0.02269516]
[1767292560605,2.76e-06,88225.0,88221.0,0.01136]
[1767292561009,2.76e-06,88225.0,88221.0,0.1598079]
[1767292561947,2.76e-06,88225.0,88221.0,0.02269516]
[1767292562152,2.76e-06,88225.0,88221.0,0.01136]
[1767292563093,0.14048651,88225.0,88213.0,0.01133619]
[1767292563239,0.14048651,88225.0,88214.0,0.14782378]
[1767292563438,0.14048651,88225.0,88216.0,0.01133581]
[1767292563693,0.14048651,88225.0,88215.0,0.02269594]
[1767292564173,0.14048651,88225.0,88216.0,0.01136]
[1767292564372,0.14048651,88225.0,88216.0,0.02269581]
[1767292564991,0.14048651,88225.0,88216.0,0.01136]
[1767292571542,0.14048375,88215.0,88210.0,0.01136]
[1767292571736,0.14048375,88216.0,88210.0,0.0114023]
[1767292578557,0.14048375,88216.0,88210.0,4.23e-05]
[1767292580581,0.01133748,88203.0,88195.0,0.00017864]
[1767292580803,0.15182187,88198.0,88195.0,0.00037864]
[1767292580993,0.14048375,88198.0,88195.0,0.00037864]
[1767292581184,0.01133773,88201.0,88195.0,0.00037864]
[1767292581330,0.15182161,88200.0,88195.0,0.00037864]
[1767292581530,0.14048375,88200.0,88190.0,0.13648772]
[1767292581740,0.58260553,88200.0,88190.0,0.13648772]
[1767292584481,0.44212178,88200.0,88190.0,0.13648772]
[1767292586517,0.44212201,88200.0,88190.0,0.13648772]
[1767292587112,0.00010578,88203.0,88190.0,0.13648772]
[1767292587302,0.44212201,88200.0,88190.0,0.13648772]
[1767292595559,1.02879527,88200.0,88190.0,0.13648772]
[1767292595764,0.14455125,88202.0,88190.0,0.13648772]
[1767292595965,0.14455125,88199.0,88190.0,0.13648772]
[1767292603301,0.44212201,88200.0,88190.0,0.13648772]
[1767292603625,0.44212201,88200.0,88191.0,0.14294407]
[1767292603771,0.00010578,88203.0,88195.0,0.14294407]
[1767292608271,0.00010578,88203.0,88192.0,0.01133889]
[1767292608729,0.44212201,88202.0,88192.0,0.01133889]
[1767292608931,0.44212201,88202.0,88192.0,0.15428296]
[1767292609685,0.44212201,88202.0,88193.0,0.01133876]
[1767292609884,0.00010578,88203.0,88193.0,0.01133876]
[1767292610081,0.00010578,88203.0,88193.0,0.14294407]
[1767292610884,0.00010578,88203.0,88193.0,0.15428283]
[1767292611300,0.00010578,88203.0,88193.0,0.14294407]
[1767292613237,0.44222779,88203.0,88193.0,0.14294407]
[1767292614615,0.44222779,88203.0,88190.0,0.13648772]
[1767292614820,0.44212201,88200.0,88190.0,0.13648772]
[1767292615586,0.44212201,88200.0,88190.0,0.26178622]
[1767292617983,0.00010578,88203.0,88190.0,0.70390823]
[1767292621680,0.00010578,88203.0,88191.0,0.01133902]
[1767292621835,0.00010578,88203.0,88192.0,0.01133889]
[1767292623075,0.00010578,88203.0,88193.0,0.1252985]
[1767292624393,0.00010578,88203.0,88190.0,0.58994888]
[1767292624630,0.00010578,88203.0,88190.0,0.57860973]
[1767292624802,0.00010578,88203.0,88190.0,0.70390823]
[1767292625702,0.00010578,88203.0,88191.0,0.1252985]
[1767292628857,0.00010578,88203.0,88190.0,0.57860973]
[1767292636293,0.00010578,88203.0,88190.0,0.56860973]
[1767292636508,0.0002,88200.0,88190.0,0.56860973]
[1767292638051,0.0002,88200.0,88190.0,0.69390823]
[1767292644316,0.0002,88200.0,88193.0,0.01133876]
[1767292644453,0.0002,88200.0,88191.0,0.13132001]
[1767292645312,0.0002,88200.0,88192.0,0.01133889]
[1767292645821,0.0002,88200.0,88191.0,0.13132001]
[1767292646031,0.0002,88200.0,88192.0,0.01133889]
[1767292647157,0.0002,88200.0,88191.0,0.13132001]
[1767292647489,0.0002,88200.0,88192.0,0.01133889]
[1767292647690,0.0002,88200.0,88191.0,0.13132001]
[1767292648141,0.0002,88200.0,88192.0,0.01133889]
[1767292648769,0.0002,88200.0,88191.0,0.13132001]
[1767292649306,0.0002,88200.0,88192.0,0.01133889]
[1767292649569,0.0002,88200.0,88191.0,0.13132001]
[1767292649570,0.01136,88211.0,88198.0,0.01133812]
[1767292649843,0.03496566,88210.0,88204.0,0.13648772]
[1767292650046,0.03496566,88209.0,88204.0,0.13593872]
[1767292650257,0.0105827,88208.0,88204.0,0.13593872]
[1767292650466,0.12494514,88209.0,88204.0,0.13593872]
[1767292650662,0.13552713,88208.0,88204.0,0.13593872]
[1767292650803,0.12494514,88208.0,88204.0,0.13593872]
[1767292652632,0.12494514,88208.0,88204.0,0.09693872]
[1767292653132,0.12494514,88208.0,88198.0,0.01136]
[1767292654785,0.01133696,88207.0,88198.0,0.01081]
[1767292654984,0.13628198,88208.0,88198.0,0.01081]
[1767292655164,0.12494514,88208.0,88198.0,0.01081]
[1767292656409,0.12494514,88208.0,88198.0,0.01023485]
[1767292657451,0.13628198,88208.0,88198.0,0.01023485]
[1767292657613,0.12494514,88208.0,88198.0,0.01023485]
[1767292657811,0.13628198,88208.0,88198.0,0.01023485]
[1767292658575,0.12494514,88208.0,88198.0,0.01023485]
[1767292670665,0.13628198,88208.0,88198.0,0.01023485]
[1767292670865,0.12494514,88207.0,88198.0,0.01023485]
[1767292671073,0.13628275,88202.0,88195.0,0.01136]
[1767292671276,0.12494514,88202.0,88195.0,0.00010578]
[1767292671474,0.01133773,88201.0,88195.0,0.00010578]
[1767292671659,0.13628275,88202.0,88195.0,0.00010578]
[1767292671855,0.12494514,88202.0,88195.0,0.00010578]
[1767292672238,0.13628275,88202.0,88195.0,0.00010578]
[1767292672464,0.12494514,88202.0,88195.0,0.00010578]
[1767292673285,0.13628275,88202.0,88195.0,0.00010578]
[1767292673630,0.13169264,88201.0,88195.0,0.00010578]
[1767292673829,0.12035491,88201.0,88195.0,0.00010578]
[1767292674134,0.13169264,88201.0,88195.0,0.00010578]
[1767292674325,0.12035491,88201.0,88195.0,0.00010578]
[1767292678908,0.13169264,88201.0,88195.0,0.00010578]
[1767292679255,0.12035491,88201.0,88195.0,0.00010578]
[1767292680181,0.01136,88203.0,88195.0,0.00010578]
[1767292680363,0.01136,88202.0,88195.0,8.087e-05]
[1767292680770,0.01133619,88213.0,88196.0,0.11438064]
[1767292681094,0.04632243,88212.0,88203.0,0.13648772]
[1767292681297,0.03496243,88211.0,88203.0,0.13648772]
[1767292681469,0.03496243,88210.0,88203.0,0.13648772]
[1767292681840,0.01136,88212.0,88203.0,0.13648772]
[1767292682141,0.03496329,88211.0,88203.0,0.13648772]
[1767292682276,0.03496329,88210.0,88203.0,0.13648772]
[1767292682503,0.01136,88212.0,88203.0,0.13648772]
[1767292682703,0.03495563,88211.0,88203.0,0.13648772]
[1767292682921,0.01136,88212.0,88203.0,0.13648772]
[1767292683126,0.03495339,88211.0,88203.0,0.13648772]
[1767292683325,0.01136,88212.0,88203.0,0.13648772]
[1767292683581,0.03495282,88211.0,88203.0,0.13648772]
[1767292683773,0.01136,88212.0,88203.0,0.13648772]
[1767292683979,0.03495282,88211.0,88203.0,0.13648772]
[1767292684231,0.01136,88212.0,88203.0,0.13648772]
[1767292684377,0.03495212,88211.0,88203.0,0.13648772]
[1767292684559,0.01136,88212.0,88203.0,0.13648772]
[1767292684760,0.03495212,88211.0,88203.0,0.13648772]
[1767292684968,0.01136,88212.0,88203.0,0.13648772]
[1767292685171,0.04631212,88211.0,88198.0,0.12571876]
[1767292685372,0.01136,88211.0,88198.0,0.11438064]
[1767292685553,0.01136,88211.0,88198.0,0.12571876]
[1767292687489,0.01136,88211.0,88198.0,0.11438064]
[1767292694016,0.13169097,88214.0,88198.0,0.11438064]
[1767292694228,0.02269632,88212.0,88198.0,0.11438064]
[1767292694597,0.01136,88212.0,88198.0,0.11438064]
[1767292696352,0.02269632,88212.0,88198.0,0.11438064]
[1767292696504,0.01136,88212.0,88198.0,0.11438064]
[1767292700537,0.02269632,88212.0,88198.0,0.11438064]
[1767292700882,0.01136,88212.0,88198.0,0.11438064]
[1767292704361,0.01057809,88211.0,88198.0,0.11438064]
[1767292704681,0.01136,88212.0,88198.0,0.11438064]
[1767292704884,0.01057808,88211.0,88198.0,0.11438064]
[1767292705083,0.01136,88212.0,88198.0,0.11438064]
[1767292705390,0.01057854,88211.0,88198.0,0.11438064]
[1767292705686,0.01136,88212.0,88198.0,0.11438064]
[1767292705886,0.01057864,88211.0,88198.0,0.11438064]
[1767292706053,0.01136,88212.0,88198.0,0.11438064]
[1767292706255,0.03495407,88211.0,88198.0,0.11438064]
[1767292706459,0.01136,88212.0,88198.0,0.11438064]
[1767292706657,0.03495438,88211.0,88198.0,0.11438064]
[1767292706872,0.01136,88212.0,88198.0,0.11438064]
[1767292707045,0.03495436,88211.0,88199.0,0.10886273]
[1767292707251,0.01136,88212.0,88199.0,0.12020072]
[1767292707450,0.03495744,88211.0,88199.0,0.12020072]
[1767292707661,0.01136,88212.0,88199.0,0.10886273]
[1767292707869,0.03495742,88211.0,88199.0,0.10886273]
[1767292708065,0.01136,88212.0,88199.0,0.10886273]
[1767292708309,0.03496152,88211.0,88199.0,0.12020072]
[1767292708509,0.01136,88212.0,88200.0,0.44196047]
[1767292708771,0.03496177,88211.0,88200.0,0.44196047]
[1767292708969,0.01058163,88210.0,88200.0,0.44196047]
[1767292709200,0.01136,88212.0,88200.0,0.44196047]
[1767292709401,0.03496975,88211.0,88200.0,0.44196047]
[1767292709642,0.03496975,88210.0,88200.0,0.44196047]
[1767292709822,0.00015638,88215.0,88200.0,0.44196047]
[1767292709823,0.01136,88213.0,88204.0,0.10886273]
[1767292709971,0.00015638,88215.0,88204.0,0.12020008]
[1767292710170,0.01058439,88214.0,88204.0,0.10886273]
[1767292710371,0.00015638,88215.0,88204.0,0.10886273]
[1767292710658,0.01058365,88214.0,88204.0,0.10886273]
[1767292710804,0.00015638,88215.0,88204.0,0.12020008]
[1767292711003,0.01058365,88214.0,88205.0,0.01133722]
[1767292711204,0.00015638,88215.0,88205.0,0.01133722]
[1767292711411,0.0105827,88214.0,88204.0,0.12020008]
[1767292711606,0.00015638,88215.0,88204.0,0.12020008]
[1767292711798,0.01058271,88214.0,88204.0,0.10886273]
[1767292712131,0.00015638,88215.0,88203.0,0.1478252]
[1767292712576,0.00015638,88215.0,88203.0,0.13648772]
[1767292713538,0.00015638,88215.0,88203.0,0.1478252]
[1767292715858,0.00015638,88215.0,88203.0,0.13648772]
[1767292721721,0.00015638,88215.0,88201.0,0.01136]
[1767292722130,0.11947964,88215.0,88201.0,0.01136]
[1767292723274,0.11932326,88210.0,88201.0,0.010811]
[1767292724974,0.11932326,88210.0,88195.0,8.087e-05]
[1767292725176,0.11932326,88208.0,88195.0,8.087e-05]
[1767292725402,0.01133671,88209.0,88195.0,8.087e-05]
[1767292725403,0.11932326,88206.0,88195.0,8.087e-05]
[1767292728784,8e-05,88195.0,88193.0,0.01136]
[1767292729007,0.00018393,88195.0,88193.0,0.01136]
[1767292729431,0.00010393,88195.0,88193.0,0.01136]
[1767292730242,0.00055,88193.0,88186.0,0.0002042]
[1767292730615,0.00010393,88195.0,88186.0,0.0002042]
[1767292731474,0.11932326,88194.0,88186.0,0.0002042]
[1767292734683,0.00010393,88195.0,88186.0,0.0002042]
[1767292740522,9.3e-07,88195.0,88186.0,0.01154386]
[1767292740725,9.3e-07,88195.0,88189.0,0.01133928]
[1767292740910,9.3e-07,88195.0,88188.0,0.14782713]
[1767292741322,9.3e-07,88195.0,88189.0,0.01133928]
[1767292741523,9.3e-07,88195.0,88192.0,0.01133889]
[1767292741723,9.3e-07,88195.0,88192.0,0.02269889]
[1767292741997,9.3e-07,88195.0,88193.0,0.11493126]
[1767292756740,9.3e-07,88195.0,88194.0,0.11493126]
[1767292765111,0.00015638,88215.0,88206.0,0.01133709]
[1767292765270,0.00015638,88215.0,88207.0,0.13648772]
[1767292765477,0.00015638,88215.0,88207.0,0.13638472]
[1767292765874,0.00015638,88215.0,88207.0,0.13583472]
[1767292771041,0.10851146,88214.0,88204.0,0.01136]
[1767292775316,0.10851146,88214.0,88203.0,0.13648772]
[1767292775436,0.10851146,88211.0,88188.0,0.01133941]
[1767292775633,0.10851146,88207.0,88188.0,0.02269941]
[1767292775990,0.10851146,88207.0,88190.0,0.01133915]
[1767292776544,0.10851146,88207.0,88189.0,0.12418952]
[1767292776760,0.10851146,88207.0,88190.0,0.01133915]
[1767292776957,0.10851146,88207.0,88189.0,0.12418952]
[1767292776958,0.11984842,88207.0,88189.0,0.11285024]
[1767292777179,0.01133722,88205.0,88189.0,0.11285024]
[1767292777382,0.10851146,88205.0,88189.0,0.11285024]
[1767292777600,0.10851146,88205.0,88189.0,0.01133928]
[1767292778190,0.10851146,88205.0,88190.0,0.01133915]
[1767292778365,0.10851146,88205.0,88189.0,0.01133928]
[1767292778566,0.10851146,88205.0,88188.0,0.02269941]
[1767292779131,0.10851146,88205.0,88189.0,0.01133928]
[1767292779326,0.10851146,88205.0,88188.0,0.02269941]
[1767292779478,0.10851146,88205.0,88188.0,0.01136]
[1767292780080,0.10851146,88203.0,88188.0,0.01136]
[1767292780392,0.10851146,88203.0,88188.0,0.02269941]
[1767292781755,0.10851146,88203.0,88190.0,0.45320353]
[1767292781971,0.10851146,88203.0,88191.0,0.01133902]
[1767292782098,0.10851146,88203.0,88190.0,0.01133915]
[1767292783134,0.10851146,88203.0,88190.0,0.45320353]
[1767292784516,0.10851146,88203.0,88191.0,0.01133902]
[1767292785802,0.10851146,88203.0,88190.0,0.45320353]
[1767292785931,0.10851146,88203.0,88191.0,0.01133902]
[1767292786291,0.10851146,88203.0,88190.0,0.45320353]
[1767292786686,0.10851146,88203.0,88191.0,0.01133902]
[1767292787553,0.10851146,88203.0,88190.0,0.45320353]
[1767292787754,0.10851146,88203.0,88191.0,0.01133902]
[1767292788158,0.10851146,88203.0,88190.0,0.01133915]
[1767292789623,0.10851146,88203.0,88189.0,0.01133928]
[1767292789802,0.10851146,88203.0,88190.0,0.01133915]
[1767292790645,0.10851146,88203.0,88189.0,0.01133928]
[1767292790981,0.10851146,88203.0,88190.0,0.01133915]
[1767292791443,0.10851146,88203.0,88192.0,0.01133889]
[1767292791948,0.10851146,88203.0,88191.0,0.01133902]
[1767292794598,0.10851146,88203.0,88192.0,0.01133889]
[1767292795326,0.10851146,88203.0,88191.0,0.01133902]
[1767292796331,0.10851146,88203.0,88192.0,0.01133889]
[1767292796885,0.10851146,88203.0,88193.0,0.01133876]
[1767292797092,0.10851146,88203.0,88192.0,0.01133889]
[1767292797295,0.10851146,88203.0,88191.0,0.01133902]
[1767292797503,0.10851146,88203.0,88192.0,0.01133889]
[1767292797903,0.10851146,88203.0,88191.0,0.01133902]
[1767292800632,0.01136,88206.0,88191.0,0.01133902]
[1767292800833,0.01136,88206.0,88192.0,0.11410193]
[1767292801239,0.01136,88206.0,88193.0,0.1141018]
[1767292801531,0.01136,88206.0,88194.0,0.10276304]
[1767292801748,0.01136,88206.0,88194.0,0.11410167]
[1767292802013,0.01136,88206.0,88194.0,0.10276304]
[1767292803646,0.01136,88206.0,88190.0,0.45320353]
[1767292804179,0.01136,88206.0,88190.0,0.44186438]
[1767292804421,0.11780212,88206.0,88190.0,0.44186438]
[1767292804594,0.10644212,88204.0,88188.0,0.11412304]
[1767292805768,0.10644212,88202.0,88188.0,0.01136]
[1767292807912,0.11777998,88200.0,88186.0,0.0002042]
[1767292808107,0.11778063,88195.0,88184.0,0.01136]
[1767292808375,0.10644212,88191.0,88181.0,0.01136]
[1767292833570,0.01136,88193.0,88181.0,0.01136]
[1767292838879,0.010811,88193.0,88183.0,0.10160387]
[1767292845401,0.010811,88193.0,88183.0,0.1017078]
[1767292845610,0.010811,88193.0,88183.0,0.10070146]
[1767292854292,0.010811,88193.0,88183.0,0.00010393]
[1767292855056,0.01136,88196.0,88183.0,0.00010393]
[1767292855262,0.03503988,88195.0,88183.0,0.00010393]
[1767292855463,0.01060529,88194.0,88183.0,0.00010393]
[1767292855780,0.01136,88196.0,88183.0,0.00010393]
[1767292855954,0.03503994,88195.0,88183.0,0.00010393]
[1767292856099,0.01060531,88194.0,88183.0,0.00010393]
[1767292856451,0.01136,88196.0,88183.0,0.00010393]
[1767292856630,0.03504009,88195.0,88183.0,0.00010393]
[1767292856795,0.01060536,88194.0,88183.0,0.00010393]
[1767292857005,0.01136,88196.0,88183.0,0.00010393]
[1767292857237,0.03504007,88195.0,88183.0,0.00010393]
[1767292857439,0.01060535,88194.0,88183.0,0.00010393]
[1767292857680,0.01136,88196.0,88183.0,0.00010393]
[1767292857897,0.03504013,88195.0,88183.0,0.00010393]
[1767292858099,0.01060537,88194.0,88183.0,0.00010393]
[1767292858285,0.01136,88196.0,88183.0,0.00010393]
[1767292858509,0.0350402,88195.0,88183.0,0.00010393]
[1767292858642,0.01060539,88194.0,88183.0,0.00010393]
[1767292858843,0.01136,88196.0,88183.0,0.00010393]
[1767292859067,0.0350402,88195.0,88183.0,0.00010393]
[1767292859268,0.01060539,88194.0,88183.0,0.00010393]
[1767292859465,0.01136,88196.0,88183.0,0.00010393]
[1767292859679,0.03504027,88195.0,88183.0,0.00010393]
[1767292859974,0.01060541,88194.0,88183.0,0.00010393]
[1767292860198,0.01136,88196.0,88183.0,0.00010393]
[1767292860397,0.03504032,88195.0,88183.0,0.00010393]
[1767292860575,0.01136,88196.0,88183.0,0.00010393]
[1767292860576,0.0106054,88194.0,88183.0,0.00010393]
[1767292860761,0.01136,88196.0,88183.0,0.00010393]
[1767292861075,0.03503923,88195.0,88183.0,0.00010393]
[1767292861276,0.0106051,88194.0,88183.0,0.00010393]
[1767292861594,0.01136,88196.0,88183.0,0.00010393]
[1767292861778,0.03503918,88195.0,88183.0,0.00010393]
[1767292861978,0.01060508,88194.0,88183.0,0.00010393]
[1767292862201,0.01136,88196.0,88183.0,0.00010393]
[1767292862522,0.03503917,88195.0,88183.0,0.00010393]
[1767292862694,0.01060507,88194.0,88183.0,0.00010393]
[1767292862893,0.01136,88196.0,88183.0,0.00010393]
[1767292863081,0.03503754,88195.0,88183.0,0.00010393]
[1767292863258,0.01060458,88194.0,88183.0,0.00010393]
[1767292863462,0.01136,88196.0,88183.0,0.00010393]
[1767292863684,0.03503819,88195.0,88183.0,0.00010393]
[1767292863904,0.01060478,88194.0,88183.0,0.00010393]
[1767292864158,0.01136,88196.0,88183.0,0.00010393]
[1767292864402,0.03503819,88195.0,88183.0,0.00010393]
[1767292864580,0.01060478,88194.0,88183.0,0.00010393]
[1767292864854,0.01136,88196.0,88183.0,0.00010393]
[1767292865047,0.03503822,88195.0,88183.0,0.00010393]
[1767292865212,0.01060478,88194.0,88183.0,0.00010393]
[1767292865412,0.01136,88196.0,88183.0,0.00010393]
[1767292865615,0.03503813,88195.0,88183.0,0.00010393]
[1767292865945,0.01060476,88194.0,88183.0,0.00010393]
[1767292866128,0.01136,88196.0,88183.0,0.00010393]
[1767292866330,0.03503812,88195.0,88183.0,0.00010393]
[1767292866551,0.01136,88196.0,88183.0,0.00010393]
[1767292866552,0.01060475,88194.0,88183.0,0.00010393]
[1767292866749,0.01136,88196.0,88183.0,0.00010393]
[1767292866954,0.03503819,88195.0,88183.0,0.00010393]
[1767292867167,0.01060477,88194.0,88183.0,0.00010393]
[1767292867468,0.01136,88196.0,88183.0,0.00010393]
[1767292867627,0.03503826,88195.0,88183.0,0.00010393]
[1767292867976,0.01060479,88194.0,88183.0,0.00010393]
[1767292868137,0.01136,88196.0,88183.0,0.00010393]
[1767292868333,0.03503828,88195.0,88183.0,0.00010393]
[1767292868567,0.0106048,88194.0,88183.0,0.00010393]
[1767292868775,0.01136,88196.0,88183.0,0.00010393]
[1767292868955,0.03503835,88195.0,88183.0,0.00010393]
[1767292869179,0.01060481,88194.0,88183.0,0.00010393]
[1767292869371,0.01136,88196.0,88183.0,0.00010393]
[1767292869570,0.03504003,88195.0,88183.0,0.00010393]
[1767292869761,0.01060532,88194.0,88183.0,0.00010393]
[1767292870003,0.01136,88196.0,88183.0,0.00010393]
[1767292870224,0.03504002,88195.0,88183.0,0.00010393]
[1767292870357,0.01060532,88194.0,88183.0,0.00010393]
[1767292870560,0.01136,88196.0,88183.0,0.00010393]
[1767292870895,0.03504003,88195.0,88183.0,0.00010393]
[1767292871040,0.01136,88196.0,88183.0,0.00010393]
[1767292871041,0.01060532,88194.0,88183.0,0.00010393]
[1767292871240,0.01136,88196.0,88183.0,0.00010393]
[1767292871598,0.03504224,88195.0,88183.0,0.00010393]
[1767292871799,0.01060599,88194.0,88183.0,0.00010393]
[1767292872097,0.01136,88196.0,88183.0,0.00010393]
[1767292872245,0.03504226,88195.0,88183.0,0.00010393]
[1767292872441,0.010606,88194.0,88183.0,0.00010393]
[1767292872642,0.01136,88196.0,88183.0,0.00010393]
[1767292872841,0.03504227,88195.0,88183.0,0.00010393]
[1767292873043,0.01060601,88194.0,88183.0,0.00010393]
[1767292873295,0.01136,88196.0,88183.0,0.00010393]
[1767292873476,0.03504227,88195.0,88183.0,0.00010393]
[1767292873692,0.01060601,88194.0,88183.0,0.00010393]
[1767292873897,0.01136,88196.0,88183.0,0.00010393]
[1767292874097,0.03504227,88195.0,88183.0,0.00010393]
[1767292874341,0.01060601,88194.0,88183.0,0.00010393]
[1767292874518,0.01136,88196.0,88183.0,0.00010393]
[1767292874728,0.03504228,88195.0,88183.0,0.00010393]
[1767292875033,0.01060601,88194.0,88183.0,0.00010393]
[1767292875234,0.01136,88196.0,88183.0,0.00010393]
[1767292875369,0.01136,88196.0,88183.0,0.01144398]
[1767292875370,0.03504236,88195.0,88183.0,0.01144398]
[1767292875570,0.01060603,88194.0,88183.0,0.00010393]
[1767292875772,0.01136,88196.0,88183.0,0.01144398]
[1767292876180,0.01136,88196.0,88183.0,0.10756011]
[1767292877413,0.01136,88196.0,88183.0,0.09622006]
[1767292878166,0.01136,88196.0,88183.0,0.10756011]
[1767292880040,0.01136,88196.0,88183.0,0.09622006]
[1767292880400,0.01136,88196.0,88183.0,0.10756011]
[1767292882221,0.01136,88196.0,88183.0,0.09622006]
[1767292882690,0.01136,88196.0,88183.0,0.10756011]
[1767292883335,0.01136,88196.0,88183.0,0.09622006]
[1767292883580,0.09592177,88198.0,88186.0,0.44218561]
[1767292883766,0.02444727,88197.0,88196.0,0.09438688]
[1767292883993,0.01136,88203.0,88196.0,0.00055]
[1767292883994,0.02444727,88202.0,88196.0,0.00055]
[1767292884211,0.02444727,88201.0,88196.0,0.00055]
[1767292884394,0.02444727,88200.0,88191.0,0.09383688]
[1767292884605,0.02444727,88199.0,88191.0,0.09383688]
[1767292884814,0.02444727,88198.0,88191.0,0.09383688]
[1767292885089,0.02444727,88197.0,88191.0,0.09383688]
[1767292885250,0.02444727,88196.0,88191.0,0.09383688]
[1767292885465,0.02269748,88203.0,88191.0,0.09383688]
[1767292885683,0.0357826,88202.0,88191.0,0.09383688]
[1767292885891,0.02444499,88201.0,88191.0,0.09383688]
[1767292886098,0.03578272,88201.0,88191.0,0.09383688]
[1767292886299,0.02444499,88200.0,88191.0,0.09383688]
[1767292886695,0.02444499,88199.0,88191.0,0.09383688]
[1767292886899,0.01136,88203.0,88191.0,0.09383688]
[1767292887062,0.02444533,88202.0,88191.0,0.09383688]
[1767292887535,0.02444533,88202.0,88191.0,0.1051759]
[1767292887744,0.01060872,88201.0,88192.0,0.01133889]
[1767292887877,0.01060872,88200.0,88191.0,0.1051759]
[1767292888075,0.09696461,88205.0,88192.0,0.01133889]
[1767292888282,0.02196894,88204.0,88195.0,0.44218561]
[1767292888488,0.0001479,88209.0,88194.0,0.45352424]
[1767292888690,0.02196576,88208.0,88199.0,0.44218561]
[1767292888896,0.04640311,88207.0,88195.0,0.01133851]
[1767292889093,0.03504311,88206.0,88195.0,0.01133851]
[1767292889294,0.01136,88207.0,88195.0,0.01133851]
[1767292889496,0.01060342,88206.0,88195.0,0.01133851]
[1767292889735,0.01136,88207.0,88195.0,0.01133851]
[1767292889936,0.01060342,88206.0,88194.0,0.01133863]
[1767292890119,0.01136,88207.0,88194.0,0.01133863]
[1767292891640,0.01136,88207.0,88197.0,0.44218561]
[1767292891975,0.01136,88207.0,88197.0,0.09383688]
[1767292892156,0.01136,88207.0,88197.0,0.53602249]
[1767292892658,0.01136,88207.0,88197.0,0.09383688]
[1767292894362,0.0001479,88209.0,88197.0,0.53579476]
[1767292894560,0.0001479,88209.0,88197.0,0.10517513]
[1767292894561,0.0115079,88209.0,88197.0,0.10517513]
[1767292894721,0.0115079,88209.0,88197.0,0.09383688]
[1767292896052,0.0115079,88209.0,88197.0,0.10517513]